bitfinex-derivatives/quotes_SOLF0:USTF0_20251210
["timestamp","ask_amount","ask_price","bid_price","bid_amount"]
[1765394706171,101.2809,138.22,138.16,3.05]
[1765394706476,0.04696956,138.2,138.18,0.052283]
[1765394707568,6.55896956,138.2,138.18,0.052283]
[1765394709370,0.04696956,138.2,138.18,3.262283]
[1765394709578,61.12,138.24,138.18,3.262283]
[1765394709766,1.58,138.2,138.18,0.052283]
[1765394710175,1.58,138.18,138.11,16.56357714]
[1765394710368,102.8918,138.18,138.11,3.21]
[1765394710774,61.12,138.19,138.11,3.21]
[1765394711076,61.12,138.19,138.12,3.21]
[1765394711281,0.04935188,138.17,138.15,3.21]
[1765394711866,0.04935188,138.17,138.14,3.26021538]
[1765394713282,1.62935188,138.17,138.14,0.05021538]
[1765394713781,6.5138,138.16,138.14,0.05021538]
[1765394714673,0.04935188,138.17,138.14,3.26021538]
[1765394715276,6.5139,138.16,138.14,0.05021538]
[1765394716286,102.8839,138.12,138.07,13.35357714]
[1765394716483,101.3682,138.1,138.06,3.21]
[1765394716787,6.5167,138.1,138.06,3.21]
[1765394717380,0.04866951,138.09,138.07,0.05308295]
[1765394717983,0.04866951,138.09,138.07,3.26308295]
[1765394718286,0.04866951,138.09,138.07,0.05308295]
[1765394718984,8.09586951,138.09,138.07,0.05308295]
[1765394719182,0.04866951,138.09,138.07,3.26308295]
[1765394719485,61.20866951,138.09,138.07,3.26308295]
[1765394719886,0.04866951,138.09,138.07,3.26308295]
[1765394720087,1.53,138.15,138.08,3.21]
[1765394720088,6.5148,138.14,138.08,3.21]
[1765394720691,61.16,138.15,138.08,9.7271]
[1765394720887,61.16,138.15,138.09,3.21]
[1765394721086,0.05509574,138.13,138.12,3.21]
[1765394722090,61.16,138.15,138.12,3.21]
[1765394722386,101.3021,138.19,138.12,3.21]
[1765394722583,101.3101,138.18,138.12,3.21]
[1765394722987,101.3021,138.19,138.12,3.21]
[1765394723295,202.5296,138.25,138.15,3.21]
[1765394723484,6.511,138.22,138.16,6.5134]
[1765394723798,101.2732,138.23,138.16,3.21]
[1765394724181,164.108,138.24,138.16,3.21]
[1765394724182,62.84,138.24,138.16,3.21]
[1765394724386,0.05010265,138.21,138.2,3.21]
[1765394724582,0.04824746,138.22,138.2,3.21]
[1765394724787,0.04919671,138.22,138.2,3.25725831]
[1765394725714,61.16,138.25,138.2,3.25725831]
[1765394726012,8.2368,138.31,138.23,3.21]
[1765394726309,62.89,138.3,138.23,3.21]
[1765394726613,8.2378,138.29,138.21,3.21]
[1765394726909,0.05375892,138.26,138.24,0.05351129]
[1765394727111,61.21375892,138.26,138.24,0.05351129]
[1765394727306,61.21375892,138.26,138.24,3.26351129]
[1765394728115,61.21375892,138.26,138.24,0.05351129]
[1765394729510,61.21375892,138.26,138.24,3.26351129]
[1765394729905,0.05375892,138.26,138.24,3.26351129]
[1765394730308,61.16,138.3,138.25,3.21]
[1765394730610,61.16,138.31,138.25,3.21]
[1765394731007,61.16,138.31,138.24,6.5096]
[1765394731008,62.95,138.31,138.22,3.21]
[1765394731314,0.04557226,138.28,138.25,0.0494213]
[1765394731511,1.83557226,138.28,138.25,0.0494213]
[1765394731712,8.2987,138.27,138.25,0.0494213]
[1765394731907,1.79,138.26,138.25,0.0494213]
[1765394732407,1.79,138.26,138.18,3.21]
[1765394732408,1.79,138.25,138.18,3.21]
[1765394732606,61.14,138.24,138.18,3.21]
[1765394733418,0.0477806,138.22,138.2,0.05370663]
[1765394734313,0.0477806,138.22,138.2,3.13370663]
[1765394735017,0.0477806,138.22,138.2,9.64520663]
[1765394735315,61.14,138.24,138.21,3.08]
[1765394735921,61.14,138.24,138.23,3.08]
[1765394736315,0.04637131,138.25,138.23,9.5901]
[1765394736511,0.04637131,138.25,138.24,3.08]
[1765394736707,6.5062,138.32,138.26,6.5086]
[1765394737020,6.5062,138.32,138.26,9.5886]
[1765394737323,62.98,138.33,138.27,6.5082]
[1765394737705,0.05080686,138.31,138.29,0.0553274]
[1765394738314,1.93080686,138.31,138.29,0.0553274]
[1765394739413,8.43750686,138.31,138.29,0.0553274]
[1765394739609,1.93080686,138.31,138.29,0.0553274]
[1765394741224,1.88,138.3,138.21,12.00052922]
[1765394741420,1.88,138.3,138.21,3.08]
[1765394742327,162.3423,138.33,138.24,0.05424442]
[1765394742328,1.93368504,138.27,138.24,0.05424442]
[1765394742527,63.04973122,138.27,138.24,0.05168339]
[1765394743424,1.88,138.26,138.24,0.05168339]
[1765394743827,8.389,138.26,138.24,0.05168339]
[1765394744026,61.16973122,138.27,138.24,0.05168339]
[1765394744221,0.04973122,138.27,138.24,0.05168339]
[1765394744526,61.16973122,138.27,138.24,9.64138339]
[1765394744725,0.04973122,138.27,138.25,3.08]
[1765394745026,0.00609485,138.27,138.26,12.00052922]
[1765394745617,0.00609485,138.27,138.26,3.08]
[1765394746027,0.00609485,138.27,138.24,3.13168339]
[1765394747231,0.00609485,138.27,138.24,0.05168339]
[1765394747633,8.39469485,138.27,138.24,0.05168339]
[1765394748027,1.88,138.26,138.24,0.05168339]
[1765394748332,8.3892,138.26,138.24,0.05168339]
[1765394748833,1.88,138.25,138.24,0.05168339]
[1765394749536,1.88,138.24,138.2,8.92052922]
[1765394749733,1.88,138.24,138.19,8.92052922]
[1765394749932,1.88,138.24,138.18,8.92052922]
[1765394750236,8.3909,138.22,138.16,18.51382922]
[1765394750531,113.40314323,138.25,138.18,0.04989897]
[1765394750532,0.04620396,138.2,138.18,0.04989897]
[1765394750733,63.0,138.19,138.18,0.04989897]
[1765394750938,1.88,138.16,138.11,8.92052922]
[1765394751138,1.88,138.15,138.1,8.92052922]
[1765394751637,1.88,138.15,138.09,8.92052922]
[1765394751824,0.05555272,138.13,138.11,0.05366178]
[1765394754144,1.93555272,138.13,138.11,0.05366178]
[1765394754339,0.05555272,138.13,138.11,3.13366178]
[1765394754638,0.05555272,138.13,138.11,12.054191]
[1765394754941,0.05555272,138.13,138.11,3.13366178]
[1765394755340,0.05555272,138.13,138.11,0.05366178]
[1765394755657,1.93555272,138.13,138.11,0.05366178]
[1765394755834,1.88,138.12,138.11,0.05366178]
[1765394756535,0.05555272,138.13,138.11,0.05366178]
[1765394756941,1.93555272,138.13,138.11,0.05366178]
[1765394757141,1.88,138.12,138.11,0.05366178]
[1765394757335,0.05555272,138.13,138.11,0.05366178]
[1765394758241,0.05555272,138.13,138.11,3.17366178]
[1765394758639,1.88,138.19,138.11,3.17366178]
[1765394758943,63.04,138.19,138.12,3.12]
[1765394759332,61.16,138.19,138.13,12.04052922]
[1765394759544,61.16,138.19,138.13,3.12]
[1765394759740,0.04878184,138.17,138.15,0.04849727]
[1765394760935,1.92878184,138.17,138.15,0.04849727]
[1765394761138,103.2114,138.15,138.12,6.68081822]
[1765394761337,1.88,138.12,138.05,8.92052922]
[1765394761644,61.16,138.11,138.04,8.92052922]
[1765394761839,67.6764,138.11,138.04,18.55952922]
[1765394762039,61.16,138.14,138.08,3.12]
[1765394762242,0.05057519,138.12,138.1,0.05441351]
[1765394762436,0.05057519,138.12,138.1,12.09494273]
[1765394762637,61.16,138.18,138.11,3.12]
[1765394762838,6.5138,138.16,138.11,3.12]
[1765394763043,1.88,138.16,138.08,15.43772922]
[1765394763438,6.5152,138.13,138.08,12.04052922]
[1765394763733,1.93327803,138.12,138.09,0.05300568]
[1765394763942,6.5161,138.11,138.09,0.05300568]
[1765394764143,69.5761,138.11,138.09,0.05300568]
[1765394764746,1.88,138.1,138.09,0.05300568]
[1765394764945,0.05327803,138.12,138.05,12.25052922]
[1765394765246,63.06,138.15,138.07,12.25052922]
[1765394765436,69.5744,138.15,138.08,8.92052922]
[1765394765636,63.06,138.15,138.08,8.92052922]
[1765394765838,0.05128021,138.13,138.1,0.04611347]
[1765394766039,1.88,138.12,138.1,0.04611347]
[1765394766243,1.88,138.09,138.03,8.92052922]
[1765394766441,63.06,138.09,138.02,12.25052922]
[1765394766649,63.06,138.09,138.02,18.77062922]
[1765394767145,0.04861405,138.07,138.04,0.0539917]
[1765394767343,1.88,138.06,138.0,8.92052922]
[1765394767648,108.4245347,138.07,137.96,8.92052922]
[1765394767649,1.88,138.0,137.96,8.92052922]
[1765394767854,1.88,137.98,137.95,3.38211237]
[1765394768052,8.4028,137.97,137.95,3.38211237]
[1765394768345,8.86222065,137.96,137.95,1.03695527]
[1765394768535,8.86222065,137.96,137.95,1.08810363]
[1765394768736,6.524,137.94,137.87,3.33]
[1765394769047,61.18,137.96,137.9,3.33]
[1765394769249,1.88,137.95,137.86,11.11920093]
[1765394769460,6.98222065,137.94,137.86,3.33]
[1765394769949,0.05037201,137.91,137.89,0.05334552]
[1765394770146,1.93037201,137.91,137.89,0.05334552]
[1765394770446,0.05037201,137.91,137.89,0.05334552]
[1765394770650,70.01222065,137.9,137.83,1.26185253]
[1765394770950,70.01222065,137.9,137.82,3.33]
[1765394771244,70.01222065,137.9,137.84,3.33]
[1765394771245,61.2,137.9,137.84,3.33]
[1765394771439,61.2,137.9,137.85,3.33]
[1765394771640,1.87874643,137.89,137.86,0.04581694]
[1765394771836,103.40334643,137.89,137.86,0.04581694]
[1765394772041,103.348,137.85,137.77,3.33]
[1765394772350,6.98222065,137.82,137.74,3.33]
[1765394772843,6.98222065,137.82,137.72,3.42854486]
[1765394772844,1.79,137.79,137.72,3.42854486]
[1765394773043,0.05189839,137.77,137.74,0.02101122]
[1765394773653,0.05189839,137.77,137.74,3.35101122]
[1765394774042,61.22,137.81,137.75,3.33]
[1765394774242,61.22,137.81,137.73,3.33]
[1765394774751,61.22,137.81,137.75,3.33]
[1765394774945,0.04594942,137.79,137.77,0.05150327]
[1765394775950,0.04594942,137.79,137.77,3.14150327]
[1765394776148,61.26,137.84,137.77,4.60150327]
[1765394776355,63.05,137.87,137.78,3.09]
[1765394776555,61.26,137.87,137.8,3.09]
[1765394776745,103.2933,137.92,137.82,3.09]
[1765394776945,103.2933,137.92,137.83,3.09]
[1765394776946,1.79,137.92,137.83,3.09]
[1765394777142,0.05166843,137.89,137.86,3.13918986]
[1765394777650,0.05166843,137.89,137.86,0.04918986]
[1765394778149,0.05166843,137.89,137.86,3.13918986]
[1765394778554,1.84166843,137.89,137.86,0.04918986]
[1765394778748,103.36666843,137.89,137.86,0.04918986]
[1765394779053,1.79,137.87,137.86,0.04918986]
[1765394779253,63.07,137.87,137.86,0.04918986]
[1765394779754,61.28,137.87,137.79,3.09]
[1765394780250,61.28,137.87,137.82,3.09]
[1765394780452,1.79,137.96,137.88,3.09]
[1765394780652,0.05139248,137.93,137.91,0.0519536]
[1765394780857,0.04854405,137.93,137.91,0.0519536]
[1765394781154,0.04854405,137.93,137.92,3.09]
[1765394781347,0.04854405,137.93,137.91,0.0519536]
[1765394782050,0.04854405,137.93,137.91,3.1419536]
[1765394784049,61.28,137.97,137.91,3.1419536]
[1765394785059,0.04773202,137.95,137.91,3.1419536]
[1765394785252,0.04773202,137.95,137.93,3.09]
[1765394785758,101.4191,138.03,137.94,3.09]
[1765394786060,103.3241,138.01,137.9,10.07222065]
[1765394786360,6.5215,138.0,137.92,3.09]
[1765394786855,0.05237911,137.97,137.95,0.05130988]
[1765394787057,0.05237911,137.97,137.95,3.14130988]
[1765394787250,86.92,138.04,137.95,104.61830988]
[1765394787453,61.28,138.03,137.96,6.98222065]
[1765394787754,164.5906,138.03,137.95,3.09]
[1765394788151,6.5206,138.02,137.95,3.09]
[1765394788353,0.0551262,138.0,137.97,3.14409393]
[1765394788781,0.0551262,138.0,137.97,0.05409393]
[1765394789066,0.0551262,138.0,137.97,3.14409393]
[1765394790254,0.0551262,138.0,137.97,0.05409393]
[1765394791442,8.4665262,138.0,137.97,0.05409393]
[1765394791649,0.0551262,138.0,137.97,0.05409393]
[1765394792445,0.0551262,138.0,137.97,3.14409393]
[1765394793451,0.0551262,138.0,137.98,3.09]
[1765394793765,0.0551262,138.0,137.97,3.14409393]
[1765394796061,0.0551262,138.0,137.97,3.37409393]
[1765394796277,0.0551262,138.0,137.97,0.05409393]
[1765394796854,1.9351262,138.0,137.97,0.05409393]
[1765394797953,1.9351262,138.0,137.9,6.98222065]
[1765394797954,103.3331,137.99,137.9,3.32]
[1765394798157,103.3331,137.99,137.86,108.52322065]
[1765394798158,1.88,137.93,137.86,3.32]
[1765394798353,61.26,137.92,137.86,3.32]
[1765394799060,0.04986757,137.9,137.88,0.05359998]
[1765394799651,0.04986757,137.9,137.88,3.37359998]
[1765394799954,0.04986757,137.9,137.89,3.32]
[1765394801452,61.26,137.95,137.9,6.5255]
[1765394801665,61.26,137.95,137.91,3.32]
[1765394801965,63.19,137.97,137.89,3.32]
[1765394802156,6.5242,137.94,137.89,3.32]
[1765394802355,1.93,137.96,137.89,3.32]
[1765394802564,0.05285427,137.94,137.91,0.04772401]
[1765394802862,1.93,137.93,137.91,0.04772401]
[1765394803048,103.4529,137.89,137.81,3.32]
[1765394803253,103.4673,137.87,137.77,3.32]
[1765394803461,8.4576,137.87,137.78,3.32]
[1765394803665,1.93,137.87,137.8,3.32]
[1765394803966,70.17222065,137.91,137.84,3.32]
[1765394804170,0.05523637,137.89,137.86,0.04646208]
[1765394804851,1.98523637,137.89,137.86,0.04646208]
[1765394805055,1.93,137.88,137.77,101.6074]
[1765394805271,6.98222065,137.86,137.78,101.603]
[1765394805563,101.5181,137.9,137.77,101.6074]
[1765394805564,6.98222065,137.89,137.82,3.32]
[1765394805969,8.86222065,137.89,137.83,6.5291]
[1765394806160,0.04815052,137.87,137.85,0.04710726]
[1765394806360,0.04815052,137.87,137.85,3.36710726]
[1765394806561,0.04815052,137.87,137.85,6.57520726]
[1765394806962,0.04815052,137.87,137.85,0.04710726]
[1765394807556,0.04815052,137.87,137.85,3.36710726]
[1765394807853,0.04815052,137.87,137.86,3.32]
[1765394808059,0.04815052,137.87,137.85,6.57520726]
[1765394808060,0.04815052,137.87,137.85,0.04710726]
[1765394808760,0.04815052,137.87,137.85,3.36710726]
[1765394809264,8.86222065,137.94,137.85,3.36710726]
[1765394809460,1.93,137.93,137.85,3.32]
[1765394809659,1.93,137.92,137.85,3.32]
[1765394809861,1.93,137.91,137.83,3.32]
[1765394810065,1.93,137.91,137.84,3.32]
[1765394810273,1.93,137.91,137.86,0.05189184]
[1765394810274,0.05214378,137.89,137.86,0.05189184]
[1765394810568,1.98214378,137.89,137.86,0.05189184]
[1765394811070,0.05214378,137.89,137.86,3.37189184]
[1765394811765,0.05214378,137.89,137.87,9.8472]
[1765394811966,0.05214378,137.89,137.88,3.32]
[1765394812270,63.23,137.94,137.88,3.32]
[1765394812571,1.93,137.93,137.87,6.5272]
[1765394813175,0.04998636,137.91,137.89,0.04938655]
[1765394814363,0.04998636,137.91,137.89,3.36938655]
[1765394814568,0.04998636,137.91,137.89,0.04938655]
[1765394815272,1.97998636,137.91,137.89,0.04938655]
[1765394815669,1.93,137.9,137.82,8.92052922]
[1765394815865,1.93,137.9,137.81,12.24052922]
[1765394816261,8.4563,137.9,137.82,3.32]
[1765394816461,61.3,137.9,137.84,12.24052922]
[1765394816661,0.05114175,137.88,137.86,0.04659839]
[1765394816867,1.93,137.87,137.86,0.04659839]
[1765394817872,0.05114175,137.88,137.79,8.92052922]
[1765394818073,1.88,137.85,137.76,12.24052922]
[1765394818272,103.4132,137.88,137.79,12.24052922]
[1765394818476,103.4132,137.88,137.8,8.92052922]
[1765394818668,103.4132,137.88,137.79,12.24052922]
[1765394819078,0.05288566,137.85,137.82,0.04677894]
[1765394819275,1.93288566,137.85,137.82,0.04677894]
[1765394819472,0.05288566,137.85,137.82,0.04677894]
[1765394820168,0.05288566,137.85,137.82,3.36677894]
[1765394820581,61.3,137.91,137.85,3.32]
[1765394820787,63.18,137.91,137.84,12.24052922]
[1765394821078,69.7057,137.91,137.85,8.92052922]
[1765394821281,69.7057,137.91,137.86,6.70031205]
[1765394821462,1.88,137.9,137.87,6.70031205]
[1765394821669,0.04695926,137.89,137.87,6.75200518]
[1765394822069,1.92695926,137.89,137.87,0.05169313]
[1765394822371,1.88,137.88,137.83,6.70031205]
[1765394822675,1.83,137.82,137.78,6.70031205]
[1765394822863,61.3,137.83,137.8,10.02031205]
[1765394823070,61.3,137.84,137.81,3.32]
[1765394823268,1.83,137.83,137.8,6.70031205]
[1765394823476,1.83,137.83,137.81,0.05390717]
[1765394823670,63.13,137.83,137.81,0.05390717]
[1765394823871,0.05303068,137.84,137.81,3.21390717]
[1765394824073,61.35303068,137.84,137.82,6.70031205]
[1765394824376,103.3295,137.94,137.84,3.16]
[1765394824578,63.14,137.91,137.88,6.70541297]
[1765394824774,1.84,137.9,137.84,6.70541297]
[1765394824975,1.84,137.9,137.85,6.70541297]
[1765394825176,1.84,137.9,137.86,6.70541297]
[1765394825481,0.05529918,137.89,137.87,3.20911439]
[1765394825672,0.05529918,137.89,137.88,6.70541297]
[1765394825868,0.05529918,137.89,137.87,3.20911439]
[1765394826080,0.05529918,137.89,137.87,9.91452736]
[1765394826370,61.32,137.94,137.88,3.16]
[1765394826573,63.16,137.94,137.89,6.71102143]
[1765394826771,63.16,137.94,137.88,6.71102143]
[1765394826772,1.84,137.93,137.88,6.71102143]
[1765394826968,1.84,137.9,137.86,6.71102143]
[1765394827169,1.84,137.9,137.84,6.71102143]
[1765394827370,1.84,137.87,137.86,0.04607869]
[1765394827568,1.84,137.86,137.82,6.71102143]
[1765394827778,63.16,137.87,137.82,6.71102143]
[1765394828176,0.05194693,137.88,137.86,6.71102143]
[1765394828575,0.05194693,137.88,137.87,6.71102143]
[1765394828775,0.05194693,137.88,137.87,9.94102143]
[1765394829171,1.84,137.94,137.87,9.94102143]
[1765394829378,61.32,137.93,137.88,9.94102143]
[1765394829583,63.16,137.93,137.88,6.71102143]
[1765394829988,69.6846,137.93,137.88,6.71102143]
[1765394830175,0.04848124,137.92,137.89,0.04596834]
[1765394830372,0.04848124,137.92,137.91,6.71102143]
[1765394830677,0.04848124,137.92,137.9,6.71102143]
[1765394831091,6.57358124,137.92,137.89,0.04596834]
[1765394831276,0.04848124,137.92,137.89,9.98698977]
[1765394831782,0.04848124,137.92,137.89,6.75698977]
[1765394832083,0.04848124,137.92,137.89,0.04596834]
[1765394832281,0.04848124,137.92,137.89,9.98698977]
[1765394832781,0.04848124,137.92,137.9,6.71102143]
[1765394834090,1.84,137.91,137.89,6.75698977]
[1765394834288,1.84,137.91,137.89,0.04596834]
[1765394834990,0.04848124,137.92,137.89,6.75698977]
[1765394834991,1.88848124,137.92,137.89,6.75698977]
[1765394835186,103.39218124,137.92,137.89,0.04596834]
[1765394835389,101.5224,137.89,137.84,8.94055063]
[1765394835590,101.538,137.87,137.84,8.94055063]
[1765394835790,101.538,137.87,137.82,8.94055063]
[1765394835994,6.5285,137.85,137.82,8.94055063]
[1765394836489,6.57820898,137.85,137.82,8.99551894]
[1765394836682,6.57820898,137.85,137.82,0.05496831]
[1765394837084,6.5291,137.84,137.82,0.05496831]
[1765394837280,18.73202718,137.84,137.82,0.05496831]
[1765394837589,101.5795,137.82,137.77,8.94055063]
[1765394837784,162.8811,137.81,137.76,8.94055063]
[1765394837985,61.3,137.81,137.79,3.23]
[1765394838291,61.3,137.85,137.81,3.23]
[1765394838486,61.3,137.85,137.81,8.97498498]
[1765394838680,61.3,137.85,137.82,0.04638253]
[1765394838681,0.04766513,137.84,137.82,0.04638253]
[1765394840195,0.04766513,137.84,137.82,3.27638253]
[1765394840393,0.04766513,137.84,137.82,0.04638253]
[1765394841686,0.04766513,137.84,137.82,9.02136751]
[1765394841890,0.04766513,137.84,137.82,0.04638253]
[1765394842285,6.57676513,137.84,137.82,0.04638253]
[1765394842593,0.04766513,137.84,137.82,0.04638253]
[1765394842895,0.04766513,137.84,137.83,3.23]
[1765394843693,0.04766513,137.84,137.83,13.41082595]
[1765394843898,0.04766513,137.84,137.82,9.04413477]
[1765394844090,0.04766513,137.84,137.83,8.99775224]
[1765394844290,0.04766513,137.84,137.82,9.04413477]
[1765394844490,0.04766513,137.84,137.82,0.04638253]
[1765394844785,6.5314,137.79,137.77,9.00037266]
[1765394844994,61.32,137.78,137.77,9.00037266]
[1765394845295,61.32,137.78,137.76,3.23]
[1765394845690,0.054552,137.78,137.76,16.68719477]
[1765394845894,0.054552,137.78,137.77,16.64082595]
[1765394845895,0.00535851,137.78,137.77,16.64082595]
[1765394846395,0.00535851,137.78,137.77,18.10082595]
[1765394846595,0.00535851,137.78,137.77,4.69]
[1765394846794,0.00535851,137.78,137.77,18.18528206]
[1765394846999,0.00535851,137.78,137.77,4.69]
[1765394847596,0.00535851,137.78,137.77,3.23]
[1765394847995,0.00535851,137.78,137.77,16.7278482]
[1765394848207,0.00535851,137.78,137.77,16.72541341]
[1765394848498,0.00535851,137.78,137.77,3.23]
[1765394848688,0.00535851,137.78,137.77,16.72541341]
[1765394849694,0.00535851,137.78,137.77,4.69]
[1765394850403,0.00535851,137.78,137.77,22.2813969]
[1765394850995,162.8589,137.9,137.81,3.23]
[1765394851194,61.34,137.9,137.83,3.23]
[1765394851391,67.8662,137.9,137.86,3.23]
[1765394852001,0.05088825,137.89,137.87,0.05534544]
[1765394852190,0.05088825,137.89,137.87,3.28534544]
[1765394852395,0.00088825,137.89,137.87,16.76658527]
[1765394852602,0.00088825,137.89,137.88,16.71123983]
[1765394852907,101.4357,138.01,137.9,3.23]
[1765394852908,162.7612,138.0,137.9,3.23]
[1765394853096,162.7612,138.0,137.93,3.23]
[1765394853097,61.32,138.0,137.93,3.23]
[1765394853402,162.7653,138.0,137.94,13.45478496]
[1765394853602,162.7653,138.0,137.93,13.45478496]
[1765394853904,0.05046934,137.98,137.95,0.04796875]
[1765394854799,101.4638,137.97,137.88,16.50478496]
[1765394855206,12.20292718,137.99,137.9,3.05]
[1765394855406,6.5222,137.98,137.91,13.45478496]
[1765394855906,0.05531201,137.96,137.93,0.04690547]
[1765394857103,0.05531201,137.96,137.93,3.09690547]
[1765394859107,0.05531201,137.96,137.94,3.05]
[1765394861711,0.05531201,137.96,137.93,0.04690547]
[1765394861912,0.05531201,137.96,137.93,3.09690547]
[1765394862407,101.4087,138.05,137.93,3.09690547]
[1765394862714,61.3,138.04,137.95,3.05]
[1765394863011,61.3,138.04,137.96,3.05]
[1765394863512,0.05366189,138.01,137.99,0.05425018]
[1765394864106,6.57456189,138.01,137.99,0.05425018]
[1765394865808,6.57456189,138.01,137.92,3.05]
[1765394865809,113.64552718,138.0,137.92,3.05]
[1765394866012,101.4496,137.99,137.92,3.05]
[1765394866213,113.65252718,137.99,137.92,3.05]
[1765394866513,101.4559,137.98,137.92,3.05]
[1765394866714,61.28,137.97,137.89,3.05]
[1765394866916,0.04977061,137.94,137.92,0.04633954]
[1765394868208,6.57387061,137.94,137.92,0.04633954]
[1765394871206,0.04977061,137.94,137.92,3.09633954]
[1765394872020,0.04977061,137.94,137.92,0.04633954]
[1765394873111,6.57417061,137.94,137.92,0.04633954]
[1765394874117,7.00717809,137.93,137.92,0.04633954]
[1765394875620,6.5256,137.91,137.85,9.5779]
[1765394876624,0.04704828,137.89,137.87,3.10172473]
[1765394877720,0.04704828,137.89,137.87,0.05172473]
[1765394877910,67.87354828,137.89,137.87,0.05172473]
[1765394878425,61.34704828,137.89,137.87,0.05172473]
[1765394880524,67.87354828,137.89,137.87,0.05172473]
[1765394880820,74.88072637,137.89,137.87,0.05172473]
[1765394881025,101.5915,137.8,137.75,3.05]
[1765394881213,61.3,137.79,137.72,6.47854486]
[1765394881518,61.3,137.79,137.74,3.05]
[1765394881917,0.0530789,137.78,137.76,3.05]
[1765394882426,51.77399332,137.79,137.77,3.05]
[1765394882628,61.3,137.85,137.77,3.05]
[1765394882925,61.3,137.85,137.78,3.05]
[1765394883123,61.3,137.85,137.79,3.05]
[1765394883423,0.04632924,137.83,137.81,0.05145425]
[1765394883621,0.04632924,137.83,137.81,0.00145425]
[1765394884528,6.57572924,137.83,137.81,0.00145425]
[1765394884728,1.46,137.82,137.81,0.00145425]
[1765394885025,6.5318,137.78,137.72,3.42854486]
[1765394885227,162.9172,137.79,137.72,3.42854486]
[1765394885724,7.00717809,137.74,137.72,0.5336626]
[1765394885915,101.67,137.69,137.6,13.45478496]
[1765394886117,6.537,137.67,137.6,6.5399]
[1765394886322,7.00717809,137.69,137.59,103.00532147]
[1765394886824,7.00717809,137.69,137.59,1.26412147]
[1765394887021,0.05028327,137.65,137.59,103.00472147]
[1765394887423,0.05028327,137.65,137.61,6.5394]
[1765394889325,0.05028327,137.65,137.6,6.5397]
[1765394890419,7.05746136,137.65,137.52,101.7926]
[1765394890616,0.04924248,137.61,137.55,101.7684]
[1765394890816,0.04924248,137.61,137.55,1.26453488]
[1765394891024,0.04924248,137.61,137.55,7.80683488]
[1765394892631,0.04924248,137.61,137.55,1.26453488]
[1765394892830,101.78384248,137.61,137.5,101.8092]
[1765394893128,6.5397,137.61,137.54,6.5427]
[1765394893838,6.5388,137.63,137.54,101.7791]
[1765394894032,108.71657809,137.64,137.55,6.5422]
[1765394894333,0.04787521,137.61,137.58,0.05498428]
[1765394901730,0.04787521,137.61,137.58,6.59578428]
[1765394902322,0.04787521,137.61,137.58,0.05498428]
[1765394903728,6.5405,137.6,137.58,0.05498428]
[1765394904338,6.5417,137.57,137.5,6.5447]
[1765394904544,108.76617809,137.57,137.45,101.844]
[1765394904946,108.76617809,137.57,137.45,103.10938552]
[1765394905243,0.04755983,137.52,137.48,6.5456]
[1765394905748,0.04755983,137.52,137.46,101.8361]
[1765394905942,0.04755983,137.52,137.44,101.8495]
[1765394906244,0.04755983,137.52,137.4,130.30236629]
[1765394906446,0.05124161,137.48,137.41,101.8763]
[1765394906942,101.7587,137.57,137.45,101.8455]
[1765394907243,101.7504,137.59,137.47,101.8291]
[1765394907244,108.75757809,137.59,137.47,101.8291]
[1765394907740,101.7617,137.57,137.45,101.8455]
[1765394908043,0.05351261,137.52,137.5,0.04839679]
[1765394908242,0.04679979,137.52,137.5,0.04839679]
[1765394911932,6.59079979,137.52,137.5,0.04839679]
[1765394912146,0.04679979,137.52,137.5,0.04839679]
[1765394914236,6.5452,137.5,137.42,6.5486]
[1765394914445,101.7831,137.54,137.43,108.86537809]
[1765394914646,61.46,137.55,137.44,101.853]
[1765394914832,61.46,137.55,137.46,7.00717809]
[1765394915242,0.04689075,137.52,137.46,7.00717809]
[1765394915448,0.04689075,137.52,137.44,101.853]
[1765394915646,0.04689075,137.52,137.45,13.55427809]
[1765394915842,0.04689075,137.52,137.45,6.5471]